[Event "Swietokrzyskie IM Chess-ch 2022"]
[Site "Zagnansk"]
[Date "2022.05.02"]
[Round "4.3"]
[White "Prokofiev, Valentyn"]
[Black "Manik, GM Mikulas"]
[Result "0-1"]
[ECO "E71"]
[WhiteElo "2287"]
[BlackElo "2367"]
[Annotator "TA"]
[PlyCount "90"]
[EventDate "2022.04.29"]
[EventCountry "POL"]
[SourceTitle "playchess.com"]
[Source "ChessBase"]
[SourceQuality "1"]
[TimeControl "40/5400+30:1800+30"]

{[%evp 12,90,39,40,41,35,53,52,46,41,73,35,53,38,43,-18,-16,-16,-26,-166,-177,-186,154,151,76,77,112,-88,-107,-116,0,0,0,0,64,0,121,8,14,0,0,0,0,0,0,0,0,0,0,0,0,0,0,0,0,-164,-142,-555,-547,-623,-625,-622,-601,-601,-600,-600,-370,-594,-597,-818,-818,-764,-727,-1076,-1002,-29969,-29970,-29964,-6079,-29998,-29999]} 1. d4 {[%emt 0:00:01]} Nf6 {[%emt 0:00:02]} 2. c4 {[%emt 0:00:06]} g6 {[%emt 0:00:06]} 3. Nc3 {[%emt 0:00:02]} Bg7 {[%emt 0:00:04]} 4. e4 {[%emt 0:00:02]} d6 {[%emt 0:00:06]} 5. h3 {[%emt 0:00:03]} O-O {[%emt 0:00:10]} 6. Be3 {[%emt 0:00:01]} c6 {[%emt 0:00:19]} 7. Nf3 {[%emt 0:02:17]} Na6 {[%emt 0:02:05] E90: King's Indian: Classical: Early deviations and 6 h3.} 8. Be2 {[%emt 0:04:08]} e5 {[%emt 0:03:08]} 9. d5 {[%emt 0:03:51]} Nc5 {[%emt 0:00:13] White is slightly better.} 10. Nd2 {[%emt 0:00:07]} Nfd7 {[%emt 0:06:40] [#]} 11. O-O $146 {[%emt 0:07:36]} ({Predecessor:} 11. g4) 11... f5 {[%emt 0:00:49]} 12. exf5 {[%emt 0:00:05]} gxf5 {[%emt 0:00:28]} 13. f4 {[%emt 0:00:04]} (13. Nb3 $14) 13... exf4 $1 $11 {[%emt 0:03:51]} 14. Bxf4 {[%emt 0:01:25]} Qb6 {[%emt 0:00:58] ...Nd3+ is the strong threat.} 15. Kh1 {[%emt 0:07:58]} (15. Bxd6 Qxb2 16. Rc1 (16. Bxf8 Nxf8 17. Rc1 Bxc3 $17) 16... Bxc3 $17) (15. Rb1 $11 {and White stays safe.}) 15... Qxb2 $19 {[%emt 0:00:36]} 16. Rf3 {[%emt 0:00:30] [#]} Ne5 $2 {[%emt 0:01:48]} (16... Bxc3 17. Rb1 $16) (16... Na4 $1 $19 {[%cal Ra4c3][%mdl 512]} 17. Nxa4 Qxa1 18. Qxa1 Bxa1 19. Bxd6 Re8) 17. Rb1 $16 {[%emt 0:13:22][%mdl 1024] White has strong compensation.} Qa3 {[%emt 0:00:11]} 18. Rg3 {[%emt 0:02:27] And now Nb3 would win.} Qa5 {[%emt 0:01:45]} 19. Bh5 $2 {[%emt 0:05:18]} (19. Nb3 $16 Nxb3 20. Rxb3 (20. Qxb3 Kh8 $11)) 19... Ncd3 $1 $36 {[%emt 0:11:26][%mdl 2048] Black is in control.} ({Don't play} 19... Ned3 $6 20. Qf3 $1 Nxf4 21. Qxf4 $11) 20. Qf1 {[%emt 0:12:13][%cal Of4h6] Against Nf2+. Strongly threatening Bh6!} Qxc3 {[%emt 0:03:34]} (20... Kh8 $17) 21. Be2 $1 $11 {[%emt 0:07:34][%cal Re2d3]} cxd5 {[%emt 0:24:32]} 22. Bxd3 {[%emt 0:05:18][%cal Od3e4] Hoping for Be4!} Qa5 {[%emt 0:01:16]} ({But not} 22... Nxd3 23. Rxd3 Qf6 24. Rxd5 $16) ({Black should try} 22... Ng6 $11) 23. Qe2 {[%emt 0:13:20]} (23. cxd5 $14 Kh8 24. Nf3 Qxd5 25. Rxg7 Qxd3 26. Bxe5 Qxf1+ 27. Rxf1 dxe5 28. Re7) 23... Kh8 {[%emt 0:03:44]} (23... Qc7 $11 {keeps the balance.}) 24. Rxg7 {[%emt 0:01:35]} Kxg7 {[%emt 0:00:08]} 25. Bxe5+ {[%emt 0:00:01]} dxe5 {[%emt 0:00:29]} 26. Qxe5+ {[%emt 0:00:13]} Kg8 {[%emt 0:07:53]} 27. Nf3 {[%emt 0:10:06]} Qd8 {[%emt 0:01:07]} 28. cxd5 {[%emt 0:00:36]} Qf6 {[%emt 0:01:05] White must now prevent ...Qxe5.} 29. Qf4 {[%emt 0:00:59]} b6 {[%emt 0:04:00]} 30. Re1 {[%emt 0:02:32]} Bd7 {[%emt 0:07:17]} 31. Ne5 {[%emt 0:01:07]} Rae8 {[%emt 0:00:12][%cal Of8f7]} 32. Re3 {[%emt 0:00:03]} Re7 {[%emt 0:00:27]} (32... Qg7 $2 33. Rg3 Rxe5 34. Rxg7+ Kxg7 35. Qxe5+ $18) 33. Rg3+ $2 {[%emt 0:01:26]} (33. d6 $11 Rg7 34. Nxd7 Rxd7 35. Bc4+ Kh8 36. Re6) 33... Kh8 $19 {[%emt 0:00:41]} 34. Re3 {[%emt 0:00:28][%mdl 8192] [#]} (34. Nf3 $17 {is tougher.}) 34... Rfe8 $1 {[%emt 0:01:16][%cal Re7e5]} 35. Nxd7 {[%emt 0:00:32]} Qa1+ {[%emt 0:00:09]} 36. Kh2 {[%emt 0:00:01] Rxe7 would kill now.} Rxe3 {[%emt 0:00:09]} 37. Bxf5 {[%emt 0:00:33]} Re1 {[%emt 0:03:24][%cal Be3e1,Be1h1,Bh1f1,Bf1f7][%mdl 32]} 38. Be6 {[%emt 0:00:17]} Rh1+ {[%emt 0:03:11]} 39. Kg3 {[%emt 0:00:03]} Rf1 {[%emt 0:00:14]} 40. Qc4 {[%emt 0:00:00]} Qe1+ {[%emt 0:00:00]} 41. Kg4 {[%emt 0:16:40] [#]} Rf7 $3 {[%emt 0:20:20][%mdl 512]} 42. Qd4+ {[%emt 0:06:56]} (42. Bxf7 Re4+) 42... Rg7+ {[%emt 0:00:13]} 43. Kh5 {[%emt 0:00:02]} Rxe6 {[%emt 0:00:31]} 44. dxe6 {[%emt 0:00:05]} Qxe6 {[%emt 0:00:14] ( -> ...Qf5+)} 45. Nf6 {[%emt 0:00:11]} Qf5+ {[%emt 0:00:05] Weighted Error Value: White=0.62/Black=0.24 (precise)} 0-1

[Event "Swietokrzyskie IM Chess-ch 2022"]
[Site "Zagnansk"]
[Date "2022.05.02"]
[Round "4.4"]
[White "Nowak, FM Lukasz"]
[Black "Malek, Jan"]
[Result "0-1"]
[ECO "A20"]
[WhiteElo "2376"]
[BlackElo "2316"]
[Annotator "TA"]
[PlyCount "180"]
[EventDate "2022.04.29"]
[EventCountry "POL"]
[SourceTitle "playchess.com"]
[Source "ChessBase"]
[SourceQuality "1"]
[TimeControl "40/5400+30:1800+30"]

{[%evp 21,180,-10,25,22,17,-26,12,-23,-25,-41,-43,-46,-30,-69,-80,-86,-41,-51,-42,-37,0,-5,-8,-7,-8,-14,-28,-76,-45,-68,-77,-79,-83,-79,-77,-61,-62,-100,-93,-130,0,5,61,73,58,55,68,74,94,91,97,60,63,42,73,67,67,67,81,25,25,37,42,0,33,0,43,30,25,19,23,21,80,69,60,64,69,62,47,53,91,104,80,80,80,104,108,94,127,55,80,64,84,8,18,5,5,3,8,14,9,12,8,0,0,-191,-176,-178,-165,-218,-192,-206,-191,-226,-214,-220,-235,-204,-232,-216,-209,-195,-158,-232,-232,-277,-268,-323,-323,-360,-312,-256,-294,-743,-710,-789,-750,-5831,-11614,-8308,-7645,-6239,-6032,-2740,-2472,-12840,-12842,-12435,-12031,-12795,-9503,-6102,-7108,-29972,-29973,-29979,-29980,-29987,-29988,-29990,-29989]} 1. c4 {[%emt 0:00:07]} e5 {[%emt 0:00:12]} 2. g3 {[%emt 0:00:09]} c6 {[%emt 0:00:07]} 3. Nf3 {[%emt 0:00:11]} e4 {[%emt 0:00:12]} 4. Nd4 {[%emt 0:00:09]} Nf6 {[%emt 0:00:20]} 5. Nc3 {[%emt 0:00:57]} Qb6 {[%emt 0:07:32]} 6. Nb3 {[%emt 0:02:11]} a5 {[%emt 0:03:33]} 7. d3 {[%emt 0:00:24]} a4 {[%emt 0:01:09]} 8. Nd2 {[%emt 0:00:16]} exd3 {[%emt 0:18:46]} 9. Bg2 {[%emt 0:00:16]} d5 {[%emt 0:04:52]} 10. exd3 {[%emt 0:00:16]} Bg4 11. Bf3 {[%emt 0:08:23]} Be6 {[%emt 0:13:03]} 12. O-O {[%emt 0:05:57]} Qa5 {[%emt 0:01:28]} 13. Qc2 {[%emt 0:09:20]} Nbd7 {[%emt 0:03:56]} 14. b3 {[%emt 0:04:57]} a3 {[%emt 0:05:42]} 15. d4 {[%emt 0:01:47]} Bb4 {[%emt 0:00:20]} 16. Ne2 {[%emt 0:00:37]} g6 {[%emt 0:02:39]} 17. Nb1 {[%emt 0:08:27]} Bf5 {[%emt 0:08:53]} 18. Qd1 {[%emt 0:00:14]} Bh3 {[%emt 0:04:09]} 19. Bg2 {[%emt 0:00:25]} Bxg2 {[%emt 0:00:02]} 20. Kxg2 {[%emt 0:00:08]} Ne4 {[%emt 0:00:12]} 21. c5 {[%emt 0:04:51]} O-O {[%emt 0:02:32]} 22. f3 {[%emt 0:07:37]} Nef6 {[%emt 0:00:02]} 23. Bd2 {[%emt 0:00:21]} Rfe8 {[%emt 0:00:06]} 24. Nf4 {[%emt 0:10:50]} (24. Re1 $11 {deserves consideration.}) 24... g5 {[%emt 0:06:00]} 25. Nd3 {[%emt 0:00:58]} Bxd2 {[%emt 0:00:08]} 26. Qxd2 {[%emt 0:00:11]} Qxd2+ {[%emt 0:00:03]} 27. Nxd2 {[%emt 0:00:10]} Re3 $1 {[%emt 0:00:24]} 28. Nb4 {[%emt 0:00:37]} Rae8 $1 {[%emt 0:01:37]} 29. Nb1 {[%emt 0:04:28]} Re2+ {[%emt 0:00:59]} 30. Rf2 {[%emt 0:09:45]} Re1 {[%emt 0:01:46]} (30... g4 $1 $17 {[%cal Rg4f3]} 31. f4 Re1) 31. Nc2 $11 {[%emt 0:00:15]} Rc1 {[%emt 0:00:18]} (31... Rd1 $11) 32. Nbxa3 $14 {[%emt 0:00:49]} Rxa1 {[%emt 0:00:43]} 33. Nxa1 {[%emt 0:00:09]} g4 {[%emt 0:00:55]} 34. N3c2 {[%emt 0:02:59]} gxf3+ {[%emt 0:02:39]} 35. Rxf3 {[%emt 0:00:39]} Ne4 {[%emt 0:01:42]} 36. b4 {[%emt 0:00:39]} Ra8 {[%emt 0:02:02]} 37. a3 {[%emt 0:00:46]} Nd2 $1 {[%emt 0:00:20]} 38. Re3 {[%emt 0:02:33]} Kf8 {[%emt 0:00:03]} 39. Nb3 {[%emt 0:00:31]} Nc4 {[%emt 0:00:05]} 40. Re1 {[%emt 0:00:00]} ({Better is} 40. Rf3 $16) 40... Nf6 $1 $11 {[%emt 0:00:00]} 41. Ra1 {[%emt 0:20:28]} Re8 {[%emt 0:18:50]} 42. Re1 {[%emt 0:05:42]} Ra8 {[%emt 0:00:01]} 43. Ra1 {[%emt 0:07:15]} Re8 {[%emt 0:00:03]} 44. Kf3 {[%emt 0:00:19]} Ne4 {[%emt 0:00:05]} 45. a4 {[%emt 0:00:29]} Re6 {[%emt 0:00:38]} 46. Kg2 $1 {[%emt 0:00:48]} Ned2 {[%emt 0:03:27]} (46... Nc3 $11 {keeps the balance.} 47. Nc1 Re4) 47. Nc1 $1 $16 {[%emt 0:01:41]} (47. Nxd2 Re2+ 48. Kf3 Rxd2 $11) 47... Nb3 {[%emt 0:05:26]} 48. Nxb3 {[%emt 0:00:58]} Re2+ {[%emt 0:00:04]} 49. Kh3 {[%emt 0:03:42]} Rxc2 {[%emt 0:00:04]} 50. b5 {[%emt 0:02:23]} Rb2 {[%emt 0:03:41] [#]} 51. bxc6 $1 {[%emt 0:00:15]} bxc6 {[%emt 0:00:02]} 52. Nc1 {[%emt 0:00:14]} Na5 {[%emt 0:00:03] [#]} 53. Ra2 $1 {[%emt 0:00:33]} Rb8 {[%emt 0:02:14]} 54. Kg4 {[%emt 0:01:15]} Kg7 {[%emt 0:01:22]} 55. Kf3 {[%emt 0:00:57]} ({White should try} 55. Nd3 $16) 55... Rb1 {[%emt 0:01:45]} 56. Ne2 {[%emt 0:00:27]} Rb3+ {[%emt 0:00:22]} 57. Kf2 {[%emt 0:00:15]} (57. Kf4 $16) 57... Kf6 $11 {[%emt 0:00:27]} 58. Nf4 {[%emt 0:03:14]} Rb4 {[%emt 0:01:02]} 59. Ke3 {[%emt 0:00:27]} Kf5 {[%emt 0:01:46]} 60. Nd3 {[%emt 0:01:37]} Rb3 $1 {[%emt 0:00:01]} 61. Rf2+ {[%emt 0:00:12]} Ke6 {[%emt 0:00:19]} 62. Ra2 {[%emt 0:01:02]} Kf5 {[%emt 0:00:13]} 63. h3 $2 {[%emt 0:00:32]} (63. g4+ $11 {and White is okay.} Kxg4 64. Rf2) 63... Nc4+ $19 {[%emt 0:00:18]} 64. Ke2 {[%emt 0:00:10]} Ke4 {[%emt 0:01:12]} 65. Nf2+ {[%emt 0:02:36]} (65. Ne1 $142) 65... Kxd4 $19 {[%emt 0:00:02]} 66. a5 {[%emt 0:00:08]} Re3+ {[%emt 0:02:14]} (66... Kxc5 67. Nd3+ Kd4 68. a6 $15) ({Worse is} 66... Rxg3 67. a6 Re3+ 68. Kf1) 67. Kd1 {[%emt 0:00:21]} Rxg3 {[%emt 0:03:17]} 68. a6 {[%emt 0:00:15]} Rg8 {[%emt 0:00:05]} ({Inferior is} 68... Kxc5 69. a7 Nb6 70. a8=Q Nxa8 71. Rxa8 $11) 69. a7 {[%emt 0:01:14]} Ra8 {[%emt 0:00:02]} 70. Ng4 {[%emt 0:00:28]} Kxc5 {[%emt 0:00:44]} 71. Nf6 {[%emt 0:00:11]} Kb6 {[%emt 0:01:15]} 72. Nd7+ {[%emt 0:00:11]} (72. Nxh7 $17 {was necessary.} Rxa7 73. Rxa7 Kxa7 74. Nf6) 72... Kc7 {[%emt 0:00:12]} 73. Nc5 {[%emt 0:00:10]} Nd6 {[%emt 0:00:09]} 74. Ra3 {[%emt 0:02:01]} h6 {[%emt 0:01:04]} ({Not} 74... Nb5 $2 75. Rf3) 75. h4 {[%emt 0:00:28]} Nc8 {[%emt 0:01:36]} 76. Rf3 {[%emt 0:00:12]} Rxa7 {[%emt 0:00:06]} 77. Rxf7+ $2 {[%emt 0:00:07]} (77. Rf6) 77... Kb6 $19 {[%emt 0:00:05]} 78. Nd7+ {[%emt 0:00:17]} Kb5 {[%emt 0:00:04]} 79. Ne5 {[%emt 0:00:59]} Rxf7 {[%emt 0:00:09]} 80. Nxf7 {[%emt 0:00:06]} h5 {[%emt 0:00:04]} 81. Ne5 {[%emt 0:00:10]} Nd6 {[%emt 0:00:06]} 82. Nd3 {[%emt 0:00:16]} Ne4 {[%emt 0:00:05]} 83. Nf4 {[%emt 0:00:11]} Nf6 {[%emt 0:00:02]} 84. Kd2 {[%emt 0:00:54]} Kc5 {[%emt 0:00:05]} 85. Ke3 {[%emt 0:00:25]} Kd6 {[%emt 0:00:04]} 86. Nd3 {[%emt 0:00:57]} c5 {[%emt 0:01:00]} 87. Kf4 {[%emt 0:00:08]} d4 {[%emt 0:00:25]} 88. Kg5 {[%emt 0:00:26]} c4 {[%emt 0:00:16]} 89. Nf4 {[%emt 0:00:10]} d3 {[%emt 0:00:12]} 90. Ng2 {[%emt 0:01:00]} c3 {[%emt 0:00:06]} 0-1

[Event "Swietokrzyskie IM Chess-ch 2022"]
[Site "Zagnansk"]
[Date "2022.05.02"]
[Round "4.5"]
[White "Kotyk, Michael"]
[Black "Chylewski, FM Patryk"]
[Result "0-1"]
[ECO "E36"]
[WhiteElo "2170"]
[BlackElo "2281"]
[Annotator "TA"]
[PlyCount "64"]
[EventDate "2022.04.29"]
[EventCountry "POL"]
[SourceTitle "playchess.com"]
[Source "ChessBase"]
[SourceQuality "1"]
[TimeControl "40/5400+30:1800+30"]

{[%evp 12,64,31,33,15,0,13,0,0,0,13,0,0,-11,12,0,0,-2,3,0,0,0,4,0,0,0,-1,-16,-17,-35,-43,-94,-95,-419,-406,-454,-450,-520,-515,-561,-542,-532,-513,-513,-510,-696,-697,-697,-679,-697,-693,-691,-689,-888,-881]} 1. d4 {[%emt 0:00:02]} Nf6 {[%emt 0:00:04]} 2. c4 {[%emt 0:00:05]} e6 {[%emt 0:00:04]} 3. Nc3 {[%emt 0:00:03]} Bb4 {[%emt 0:00:04]} 4. Qc2 {[%emt 0:00:04]} d5 {[%emt 0:04:49]} 5. a3 {[%emt 0:00:38]} Bxc3+ {[%emt 0:00:19]} 6. Qxc3 {[%emt 0:00:05]} dxc4 {[%emt 0:01:35]} 7. Qxc4 {[%emt 0:01:03]} b6 {[%emt 0:02:17] E36: Nimzo-Indian: Classical: 4...d5 5 a3.} 8. Bg5 {[%emt 0:00:36]} O-O {[%emt 0:01:18]} 9. Nf3 {[%emt 0:01:17]} Ba6 {[%emt 0:10:35] The position is equal.} 10. Qa4 {[%emt 0:00:06]} Qd7 {[%emt 0:01:12] 10...h6 is setting a new trend.} 11. Qxd7 {[%emt 0:02:43]} Nbxd7 {[%emt 0:00:36]} 12. e3 {[%emt 0:08:31]} Bb7 {[%emt 0:07:56]} 13. Rc1 {[%emt 0:04:53]} Rac8 {[%emt 0:06:56]} 14. Be2 {[%emt 0:02:06]} c5 {[%emt 0:01:58]} 15. Bxf6 {[%emt 0:01:01]} gxf6 {[%emt 0:01:09]} 16. O-O {[%emt 0:02:17] [#]} a6 $146 {[%emt 0:04:24]} ({Predecessor:} 16... Rfd8 17. Rfd1 f5 18. Kf1 Bxf3 19. gxf3 cxd4 20. Rxc8 Rxc8 21. Rxd4 Ne5 {½-½ (31) Ma,Q (2637)-Bu,X (2713) China 2017}) 17. Rfd1 {[%emt 0:02:52]} b5 {[%emt 0:05:42]} 18. dxc5 {[%emt 0:03:00]} Nxc5 {[%emt 0:00:21][%cal Bd7c5,Bc5a4,Ba4c3,Bc3a2,Ba2c1][%mdl 32]} 19. Nd4 {[%emt 0:03:17]} Na4 {[%emt 0:02:01]} 20. Rxc8 {[%emt 0:07:39]} Rxc8 {[%emt 0:00:23]} 21. b3 {[%emt 0:00:21]} (21. b4 $15) 21... Nc3 $17 {[%emt 0:01:13]} 22. Rc1 {[%emt 0:01:41][%mdl 8192] [#] Now White is beyond hope.} (22. Rd2 $17) 22... e5 $19 {[%emt 0:04:27]} 23. Bg4 {[%emt 0:00:12]} Rc7 {[%emt 0:01:58] Black is clearly winning.} 24. Nc2 {[%emt 0:02:46]} Na2 {[%emt 0:00:11]} 25. Ra1 {[%emt 0:00:18]} Rxc2 {[%emt 0:00:06]} 26. Bf5 {[%emt 0:00:03]} Rc1+ {[%emt 0:00:19]} 27. Rxc1 {[%emt 0:00:07]} Nxc1 {[%emt 0:00:04]} 28. Bc2 {[%emt 0:00:41]} a5 {[%emt 0:00:53]} 29. Kf1 {[%emt 0:00:26]} Bd5 {[%emt 0:00:27]} 30. b4 {[%emt 0:00:06]} axb4 {[%emt 0:00:03]} 31. axb4 {[%emt 0:00:04]} Na2 {[%emt 0:00:05]} 32. Bd3 {[%emt 0:00:09]} Bc4 {[%emt 0:00:15] Weighted Error Value: White=0.57/Black=0.04 (flawless)} 0-1

[Event "Swietokrzyskie IM Chess-ch 2022"]
[Site "Zagnansk"]
[Date "2022.05.03"]
[Round "5.1"]
[White "Chylewski, FM Patryk"]
[Black "Sieciechowicz, IM Marcin"]
[Result "1/2-1/2"]
[ECO "E97"]
[WhiteElo "2281"]
[BlackElo "2388"]
[Annotator "TA"]
[PlyCount "90"]
[EventDate "2022.04.29"]
[EventCountry "POL"]
[SourceTitle "playchess.com"]
[Source "ChessBase"]
[SourceQuality "1"]
[TimeControl "40/5400+30:1800+30"]

{[%evp 22,90,29,28,59,0,82,81,83,80,82,77,63,58,58,60,78,52,43,43,34,31,18,19,88,95,110,55,56,36,35,0,0,0,0,-24,0,-58,-61,-69,-66,-53,-32,-48,-20,-25,-52,-125,-125,-125,-125,-128,-112,-121,-129,-114,0,0,0,0,0,0,0,0,0,0,0,0,0,0,0]} 1. d4 {[%emt 0:00:02]} Nf6 {[%emt 0:00:07]} 2. c4 {[%emt 0:00:05]} g6 {[%emt 0:00:09]} 3. Nc3 {[%emt 0:00:05]} Bg7 {[%emt 0:00:05]} 4. e4 {[%emt 0:00:06]} d6 {[%emt 0:00:04]} 5. Nf3 {[%emt 0:00:04][%cal Bg1f3,Bf3e1,Be1d3][%mdl 32]} O-O {[%emt 0:00:05]} 6. Be2 {[%emt 0:00:04]} e5 {[%emt 0:00:07]} 7. O-O {[%emt 0:00:08]} Nc6 {[%emt 0:00:03]} 8. d5 {[%emt 0:00:05]} Ne7 {[%emt 0:00:12]} 9. a4 {[%emt 0:00:06]} a5 {[%emt 0:00:44]} 10. Ne1 {[%emt 0:00:05]} Nd7 {[%emt 0:01:36]} 11. Nd3 {[%emt 0:00:20]} f5 {[%emt 0:01:02]} 12. f3 {[%emt 0:00:58]} c5 {[%emt 0:07:26] E97: King's Indian: Classical Main Line (6...e5 7 0-0 Nc6): 8 Be3 and 8 d5 Ne7, not 9 Ne1.} 13. f4 {[%emt 0:11:04] [#]} (13. b3 $14) 13... Kh8 $146 {[%emt 0:20:15]} (13... exf4 $11 14. Nxf4 Ne5) ({Predecessor:} 13... exf4 14. Nxf4 Bxc3 15. bxc3 Ne5 16. Nd3 Nf7 17. Bf3 fxe4 18. Bxe4 Bf5 19. Bxf5 Nxf5 20. Nf4 {½-½ (45) Can,E (2542)-Granda Zuniga,J (2685) Sitges 2015}) 14. fxe5 $16 {[%emt 0:08:23]} Nxe5 {[%emt 0:01:07] White is better.} 15. Nxe5 {[%emt 0:00:46]} Bxe5 {[%emt 0:01:52]} 16. Bh6 {[%emt 0:04:43]} Rf7 {[%emt 0:09:31][%cal Oe7c6]} 17. Qd2 {[%emt 0:10:11]} Ng8 {[%emt 0:05:37]} 18. Bf4 {[%emt 0:13:00]} Bxf4 {[%emt 0:10:11]} 19. Qxf4 {[%emt 0:01:29]} (19. Rxf4 $5 {[%cal Re4f5]} g5 20. Rf2 $14) 19... g5 {[%emt 0:01:33]} 20. Qf2 {[%emt 0:03:01][%cal Re4f5]} f4 {[%emt 0:00:30]} 21. e5 {[%emt 0:07:50] Prevents Nf6.} dxe5 {[%emt 0:01:42]} 22. Qxc5 {[%emt 0:02:52]} Ra6 {[%emt 0:15:55] Prevents d6.} (22... b6 $11 {remains equal.} 23. Qa3 Bf5) 23. Rad1 {[%emt 0:05:52]} Nf6 {[%emt 0:07:27]} 24. d6 {[%emt 0:04:04] White is more active.} (24. Qa3 $1 $16) 24... Qb6 $1 $14 {[%emt 0:00:05]} 25. Qxb6 {[%emt 0:07:09]} (25. b4 $5 Qxc5+ 26. bxc5 $14) 25... Rxb6 {[%emt 0:00:02][%cal Ba6b6,Bb6b2,Bb2d2][%mdl 32]} 26. c5 {[%emt 0:03:42]} Rxb2 {[%emt 0:00:53]} 27. Bc4 {[%emt 0:01:16]} Rf8 {[%emt 0:00:23]} 28. Nd5 {[%emt 0:02:01]} Nd7 {[%emt 0:02:03]} 29. Bb5 {[%emt 0:01:50]} (29. Ne7 $11 Nxc5 30. Rd5) 29... Nxc5 $15 {[%emt 0:01:45] Threatens to win with ...Be6.} 30. Rc1 {[%emt 0:02:09]} Nb3 {[%emt 0:02:20]} 31. Rb1 {[%emt 0:08:59] [#]} Rd2 {[%emt 0:01:10]} 32. Nb6 {[%emt 0:01:43]} Be6 {[%emt 0:01:41]} 33. Bc4 $1 {[%emt 0:00:55]} Nc5 {[%emt 0:04:14]} 34. Rfd1 {[%emt 0:00:32]} ({White should try} 34. Bxe6 $15 Nxe6 35. Nc4) 34... Rxd1+ $17 {[%emt 0:01:36]} 35. Rxd1 {[%emt 0:00:03]} Bxc4 {[%emt 0:01:23]} 36. Nxc4 {[%emt 0:00:02][%mdl 4096] Endgame [#] KRN-KRN} Nd7 $1 {[%emt 0:00:31]} ({Reject} 36... Nxa4 $6 37. Rd5 $11 (37. d7 Rd8 $15)) 37. Rb1 {[%emt 0:02:15] [#]} b6 {[%emt 0:00:53]} 38. Rb5 {[%emt 0:00:04]} Re8 {[%emt 0:02:11]} (38... Rd8 $17 39. Kf2 Kg7 40. Nxe5 Nxe5 41. Rxe5 Kf6) 39. Nxb6 $11 {[%emt 0:00:22] The position is equal.} Nxb6 {[%emt 0:00:08]} 40. Rxb6 {[%emt 0:00:00] KR-KR} Kg7 {[%emt 0:00:00] Hoping for ...Rd8.} 41. d7 {[%emt 0:16:50]} Rd8 {[%emt 0:16:36]} 42. Re6 {[%emt 0:00:15]} Rxd7 {[%emt 0:03:02] ...Rd5 is the strong threat.} 43. Rxe5 {[%emt 0:00:12]} Kf6 {[%emt 0:01:22]} 44. Rxa5 {[%emt 0:00:24]} Rd1+ {[%emt 0:00:44]} 45. Kf2 {[%emt 0:00:12]} Ra1 {[%emt 0:01:36] Weighted Error Value: White=0.14 (very precise) /Black=0.14 (very precise)} 1/2-1/2